fUST/lending_fUST_20250102
["ID","MTS","AMOUNT","RATE_DAILY","PERIOD"]
[347397947,1735763433167,-500.0,0.00019178,2]
[347397948,1735763433176,-500.0,0.00019178,2]
[347397949,1735763433186,-343.80204284,0.00019178,2]
[347397950,1735763433195,-500.0,0.00019178,2]
[347397951,1735763433204,-500.0,0.00019178,2]
[347397952,1735763433214,-500.0,0.00019178,2]
[347397953,1735763433223,-1009.27,0.00019178,2]
[347397955,1735763433232,-500.0,0.00019178,2]
[347397956,1735763433241,-500.0,0.00019178,2]
[347397958,1735763433253,-743.81,0.00019178,2]
[347397960,1735763433263,-542.29652613,0.00019178,2]
[347397962,1735763433272,-1355.17,0.00019178,2]
[347397964,1735763433280,-611.62342174,0.00019178,2]
[347397966,1735763433290,-500.0,0.00019178,2]
[347397968,1735763433299,-775.33,0.00019178,2]
[347397970,1735763433309,-500.0,0.00019178,2]
[347397972,1735763433321,-749.8,0.00019178,2]
[347397974,1735763433330,-500.0,0.00019178,2]
[347397976,1735763433340,-500.0,0.00019178,2]
[347397978,1735763433349,-500.0,0.00019178,2]
[347397980,1735763433359,-500.0,0.00019178,2]
[347397982,1735763433369,-5761.34,0.00019178,2]
[347397984,1735763433378,-500.0,0.00019178,2]
[347397986,1735763433388,-1810.6,0.00019178,2]
[347397988,1735763433397,-500.0,0.00019178,2]
[347397990,1735763433408,-500.0,0.00019178,2]
[347397992,1735763433417,-763.06,0.00019178,2]
[347397994,1735763433426,-500.0,0.00019178,2]
[347397996,1735763433437,-1701.32,0.00019178,2]
[347397998,1735763433446,-500.0,0.00019178,2]
[347398000,1735763433455,-604.0,0.00019178,2]
[347398002,1735763433465,-500.0,0.00019178,2]
[347398004,1735763433474,-502.35,0.00019178,2]
[347398006,1735763433484,-500.0,0.00019178,2]
[347398008,1735763433493,-500.0,0.00019178,2]
[347398010,1735763433503,-861.55,0.00019178,2]
[347398012,1735763433513,-930.39,0.00019178,2]
[347398014,1735763433522,-500.0,0.00019178,2]
[347398016,1735763433531,-1089.05,0.00019178,2]
[347398018,1735763433541,-500.0,0.00019178,2]
[347398020,1735763433550,-832.92,0.00019178,2]
[347398022,1735763433560,-500.0,0.00019178,2]
[347398024,1735763433570,-210.71179359,0.00019178,2]
[347398026,1735763433580,-500.0,0.00019178,2]
[347398029,1735763433591,-2602.94,0.00019178,2]
[347398031,1735763433601,-719.22,0.00019178,2]
[347398033,1735763433618,-500.0,0.00019178,2]
[347398036,1735763433635,-500.0,0.00019178,2]
[347398038,1735763433644,-6693.53,0.00019178,2]
[347398040,1735763433654,-500.0,0.00019178,2]
[347398042,1735763433664,-1224.94,0.00019178,2]
[347398044,1735763433673,-500.0,0.00019178,2]
[347398046,1735763433683,-987.92,0.00019178,2]
[347398048,1735763433692,-500.0,0.00019178,2]
[347398050,1735763433702,-1276.82,0.00019178,2]
[347398052,1735763433711,-612.08,0.00019178,2]
[347398054,1735763433722,-500.0,0.00019178,2]
[347398056,1735763433731,-500.0,0.00019178,2]
[347398058,1735763433741,-1489.92,0.00019178,2]
[347398060,1735763433751,-500.0,0.00019178,2]
[347398062,1735763433761,-1106.02,0.00019178,2]
[347398064,1735763433770,-4419.72,0.00019178,2]
[347398066,1735763433780,-500.0,0.00019178,2]
[347398068,1735763433789,-944.35,0.00019178,2]
[347398070,1735763433799,-1989.85,0.00019178,2]
[347398072,1735763433809,-500.0,0.00019178,2]
[347398074,1735763433820,-500.0,0.00019178,2]
[347398076,1735763433830,-500.0,0.00019178,2]
[347398078,1735763433840,-1929.92,0.00019178,2]
[347398080,1735763433850,-688.24,0.00019178,2]
[347398082,1735763433859,-500.0,0.00019178,2]
[347398084,1735763433869,-573.39,0.00019178,2]
[347398087,1735763433879,-1449.09,0.00019178,2]
[347398088,1735763433889,-500.0,0.00019178,2]
[347398091,1735763433902,-1468.75,0.00019178,2]
[347398093,1735763433911,-612.33,0.00019178,2]
[347398095,1735763433921,-500.0,0.00019178,2]
[347398097,1735763433932,-970.59,0.00019178,2]
[347398099,1735763433942,-34932.23,0.00019178,2]
[347398101,1735763433951,-500.0,0.00019178,2]
[347398103,1735763433961,-642.94,0.00019178,2]
[347398104,1735763433971,-8034.71,0.00019178,2]
[347398107,1735763433981,-4506.27,0.00019178,2]
[347398109,1735763433990,-500.0,0.00019178,2]
[347398111,1735763433999,-713.53,0.00019178,2]
[347398113,1735763434009,-1132.14,0.00019178,2]
[347398115,1735763434018,-2946.87,0.00019178,2]
[347398117,1735763434028,-500.0,0.00019178,2]
[347398119,1735763434038,-500.0,0.00019178,2]
[347398121,1735763434047,-500.0,0.00019178,2]
[347398123,1735763434057,-649.9,0.00019178,2]
[347398125,1735763434069,-500.0,0.00019178,2]
[347398127,1735763434079,-1766.36,0.00019178,2]
[347398129,1735763434089,-1766.36,0.00019178,2]
[347398131,1735763434099,-1171.25,0.00019178,2]
[347398133,1735763434108,-1766.36,0.00019178,2]
[347398135,1735763434118,-1766.36,0.00019178,2]
[347398137,1735763434128,-1766.36,0.00019178,2]
[347398139,1735763434138,-1766.36,0.00019178,2]
[347398141,1735763434147,-827.87,0.00019178,2]
[347398143,1735763434156,-500.0,0.00019178,2]
[347398145,1735763434166,-3081.09,0.00019178,2]
[347398148,1735763434175,-231.6371119,0.00019178,2]
[347398150,1735763434186,-564.36,0.00019178,2]
[347398151,1735763434195,-731.32,0.00019178,2]
[347398154,1735763434204,-500.0,0.00019178,2]
[347398156,1735763434214,-500.0,0.00019178,2]
[347398158,1735763434223,-484.76724784,0.00019178,2]
[347398536,1735763438013,-15.23275216,0.00019178,2]
[347398538,1735763438022,-592.45,0.00019178,2]
[347398540,1735763438032,-1500.79,0.00019178,2]
[347398542,1735763438042,-2114.29417185,0.00019178,2]
[347398559,1735763438193,-386.01582815,0.00019178,2]
[347398561,1735763438202,-500.0,0.00019178,2]
[347398563,1735763438211,-670.83,0.00019178,2]
[347398565,1735763438220,-3146.36,0.00019178,2]
[347398567,1735763438229,-1425.05,0.00019178,2]
[347398569,1735763438238,-215.47903312,0.00019178,2]
[347398572,1735763438250,-284.52096688,0.00019178,2]
[347398574,1735763438259,-1634.4,0.00019178,2]
[347398576,1735763438268,-523.15,0.00019178,2]
[347398578,1735763438277,-500.0,0.00019178,2]
[347398580,1735763438286,-726.56,0.00019178,2]
[347398582,1735763438294,-500.0,0.00019178,2]
[347398584,1735763438303,-500.0,0.00019178,2]
[347398586,1735763438313,-500.0,0.00019178,2]
[347398587,1735763438322,-500.0,0.00019178,2]
[347398589,1735763438331,-2294.23,0.00019178,2]
[347398591,1735763438340,-891.63,0.00019178,2]
[347398593,1735763438349,-172.225814,0.00019178,2]
[347398595,1735763438358,-1142.76,0.000192,2]
[347398597,1735763438367,-185.76419843,0.00019284,2]
[347398599,1735763438376,-534.0,0.00019334,2]
[347398601,1735763438385,-2097.0,0.00019334,2]
[347398603,1735763438394,-2350.0,0.00019334,2]
[347398606,1735763438404,-394.0,0.00019334,2]
[347398608,1735763438413,-946.42,0.00019452,3]
[347398610,1735763438422,-500.0,0.00019452,3]
[347398612,1735763438431,-500.0,0.00019452,3]
[347398614,1735763438441,-500.0,0.00019452,3]
[347398615,1735763438450,-580.58901654,0.00019452,3]
[347398618,1735763438462,-1013.13098346,0.00019452,3]
[347398620,1735763438472,-500.0,0.00019452,3]
[347398622,1735763438481,-401.11702692,0.00019452,3]
[347398624,1735763438491,-500.0,0.00019452,3]
[347398626,1735763438500,-500.0,0.00019452,3]
[347398628,1735763438509,-500.0,0.00019452,3]
[347398630,1735763438518,-500.0,0.00019452,3]
[347398632,1735763438527,-500.0,0.00019452,3]
[347398634,1735763438536,-610.41,0.00019452,3]
[347398636,1735763438545,-500.0,0.00019452,3]
[347398638,1735763438554,-506.94332295,0.00019452,3]
[347398640,1735763438563,-500.0,0.00019452,3]
[347398642,1735763438573,-500.0,0.00019452,3]
[347398644,1735763438582,-500.0,0.00019452,3]
[347398646,1735763438591,-500.0,0.00019452,3]
[347398648,1735763438601,-500.0,0.00019452,3]
[347398650,1735763438610,-500.0,0.00019452,3]
[347398652,1735763438619,-500.0,0.00019452,3]
[347398654,1735763438628,-500.0,0.00019452,3]
[347398656,1735763438637,-500.0,0.00019452,3]
[347398658,1735763438646,-500.0,0.00019452,3]
[347398660,1735763438655,-500.0,0.00019452,3]
[347398662,1735763438664,-500.0,0.00019452,3]
[347398664,1735763438673,-553.98,0.00019452,3]
[347398666,1735763438682,-675.96,0.00019452,3]
[347398667,1735763438691,-500.0,0.00019452,3]
[347398669,1735763438700,-500.0,0.00019452,3]
[347398671,1735763438709,-165.08866667,0.00019452,3]
[347398674,1735763438721,-334.91133333,0.00019452,3]
[347398676,1735763438730,-529.79,0.00019452,3]
[347398678,1735763438741,-500.0,0.00019452,3]
[347398680,1735763438750,-500.0,0.00019452,3]
[347398682,1735763438759,-500.0,0.00019452,3]
[347398684,1735763438768,-500.0,0.00019452,3]
[347398686,1735763438777,-532.35,0.00019452,3]
[347398688,1735763438786,-500.0,0.00019452,3]
[347398690,1735763438795,-850.72,0.00019452,3]
[347398692,1735763438804,-500.0,0.00019452,3]
[347398694,1735763438813,-388.61912529,0.00019452,3]
[347398696,1735763438822,-856.56237841,0.00019452,3]
[347398698,1735763438834,-224.70762159,0.00019452,3]
[347398700,1735763438843,-500.0,0.00019452,3]
[347398702,1735763438852,-423.29487686,0.00019452,3]
[347398704,1735763438861,-1270.33,0.00019452,3]
[347398706,1735763438871,-500.0,0.00019452,3]
[347398708,1735763438880,-500.0,0.00019452,3]
[347398710,1735763438890,-500.0,0.00019452,3]
[347398712,1735763438900,-500.0,0.00019452,3]
[347398714,1735763438909,-500.0,0.00019452,3]
[347398716,1735763438919,-1009.27,0.00019452,3]
[347398718,1735763438928,-500.0,0.00019452,3]
[347398720,1735763438939,-500.0,0.00019452,3]
[347398722,1735763438949,-743.81,0.00019452,3]
[347398725,1735763438958,-1355.17,0.00019452,3]
[347398727,1735763438969,-500.0,0.00019452,3]
[347398729,1735763438978,-775.33,0.00019452,3]
[347398731,1735763438987,-570.04417982,0.00019452,3]
[347398733,1735763438996,-749.8,0.00019452,3]
[347398735,1735763439005,-500.0,0.00019452,3]
[347398737,1735763439014,-206.76426436,0.00019452,3]
[347398739,1735763439023,-500.0,0.00019452,3]
[347398741,1735763439033,-500.0,0.00019452,3]
[347398743,1735763439042,-5761.34,0.00019452,3]
[347398745,1735763439051,-500.0,0.00019452,3]
[347398746,1735763439061,-500.0,0.00019452,3]
[347398749,1735763439070,-763.06,0.00019452,3]
[347398751,1735763439080,-500.0,0.00019452,3]
[347398752,1735763439090,-1701.32,0.00019452,3]
[347398755,1735763439099,-500.0,0.00019452,3]
[347398757,1735763439109,-604.0,0.00019452,3]
[347398759,1735763439118,-500.0,0.00019452,3]
[347398761,1735763439128,-502.35,0.00019452,3]
[347398762,1735763439138,-500.0,0.00019452,3]
[347398765,1735763439149,-500.0,0.00019452,3]
[347398766,1735763439158,-861.55,0.00019452,3]
[347398768,1735763439167,-500.0,0.00019452,3]
[347398770,1735763439176,-1089.05,0.00019452,3]
[347398773,1735763439186,-500.0,0.00019452,3]
[347398775,1735763439195,-832.92,0.00019452,3]
[347398776,1735763439205,-500.0,0.00019452,3]
[347398778,1735763439214,-2602.94,0.00019452,3]
[347398781,1735763439223,-500.0,0.00019452,3]
[347398783,1735763439233,-719.22,0.00019452,3]
[347398784,1735763439244,-500.0,0.00019452,3]
[347398787,1735763439255,-500.0,0.00019452,3]
[347398789,1735763439266,-6693.53,0.00019452,3]
[347398791,1735763439276,-500.0,0.00019452,3]
[347398793,1735763439286,-1224.94,0.00019452,3]
[347398795,1735763439295,-500.0,0.00019452,3]
[347398797,1735763439304,-987.92,0.00019452,3]
[347398799,1735763439313,-500.0,0.00019452,3]
[347398801,1735763439323,-1276.82,0.00019452,3]
[347398803,1735763439331,-612.08,0.00019452,3]
[347398805,1735763439340,-500.0,0.00019452,3]
[347398807,1735763439349,-500.0,0.00019452,3]
[347398809,1735763439359,-500.0,0.00019452,3]
[347398811,1735763439371,-1489.92,0.00019452,3]
[347398813,1735763439385,-1106.02,0.00019452,3]
[347398816,1735763439398,-4419.72,0.00019452,3]
[347398818,1735763439412,-500.0,0.00019452,3]
[347398821,1735763439424,-944.35,0.00019452,3]
[347398823,1735763439436,-1989.85,0.00019452,3]
[347398825,1735763439449,-500.0,0.00019452,3]
[347398828,1735763439460,-500.0,0.00019452,3]
[347398830,1735763439472,-500.0,0.00019452,3]
[347398832,1735763439485,-1929.92,0.00019452,3]
[347398835,1735763439497,-688.24,0.00019452,3]
[347398837,1735763439510,-500.0,0.00019452,3]
[347398839,1735763439522,-573.39,0.00019452,3]
[347398842,1735763439535,-1449.09,0.00019452,3]
[347398844,1735763439548,-500.0,0.00019452,3]
[347398846,1735763439560,-1468.75,0.00019452,3]
[347398849,1735763439571,-612.33,0.00019452,3]
[347398851,1735763439583,-297.77099691,0.00019452,3]
[347398854,1735763439595,-970.59,0.00019452,3]
[347398856,1735763439606,-4915.29568853,0.00019452,3]
[347398860,1735763439628,-4633.70808809,0.00019452,3]
[347398900,1735763440089,-20520.232975,0.00019452,3]
[347398903,1735763440105,-4862.99324838,0.00019452,3]
[347398906,1735763440118,-642.94,0.00019452,3]
[347398908,1735763440132,-5251.6417525,0.00019452,3]
[347399013,1735763443229,-313.26257089,0.00019178,2]
[347399053,1735763667217,500.0,0.00023255,120]
[347399108,1735764632483,-159.577617,0.00013973,2]
[347399110,1735764632493,-445.12746209,0.00016585,14]
[347399112,1735764632503,-1157.82342018,0.00016753,14]
[347399114,1735764632512,-1487.6745229,0.00018089,2]
[347399116,1735764632521,-5164.75756255,0.00018856,2]
[347399119,1735764632531,-155.55659496,0.00018899,2]
[347399121,1735764632540,-500.0,0.00018999,2]
[347399123,1735764632549,-185.76419843,0.00019078,2]
[347399125,1735764632558,-300.0,0.00019099,2]
[347399127,1735764632567,-300.0,0.000191,8]
[347399129,1735764632576,-352.6179867,0.000191,2]
[347399131,1735764632586,-352.6179867,0.000191,2]
[347399133,1735764632595,-352.6179867,0.000191,2]
[347399135,1735764632604,-10058.72106001,0.00019142,2]
[347399137,1735764632613,-160.733,0.00019177,2]
[347399139,1735764632622,-522.96162948,0.00019177,2]
[347399141,1735764632631,-500.0,0.00019177,2]
[347399143,1735764632641,-227.17104749,0.00019177,2]
[347399145,1735764632650,-500.0,0.00019177,2]
[347399147,1735764632659,-500.0,0.00019177,2]
[347399149,1735764632669,-500.0,0.00019177,2]
[347399151,1735764632678,-650.20939896,0.00019177,2]
[347399153,1735764632687,-608.62676086,0.00019177,2]
[347399155,1735764632696,-500.0,0.00019178,2]
[347399157,1735764632705,-500.0,0.00019178,2]
[347399159,1735764632714,-500.0,0.00019178,2]
[347399161,1735764632723,-500.0,0.00019178,2]
[347399163,1735764632733,-500.0,0.00019178,2]
[347399165,1735764632742,-500.0,0.00019178,2]
[347399167,1735764632751,-452.12130004,0.00019178,2]
[347399169,1735764632760,-310.94,0.00019178,2]
[347399171,1735764632769,-500.0,0.00019178,2]
[347399173,1735764632778,-500.0,0.00019178,2]
[347399175,1735764632787,-500.0,0.00019178,2]
[347399177,1735764632797,-500.0,0.00019178,2]
[347399179,1735764632806,-500.0,0.00019178,2]
[347399180,1735764632815,-500.0,0.00019178,2]
[347399182,1735764632824,-416.47810075,0.00019178,2]
[347399184,1735764632833,-500.0,0.00019178,2]
[347399186,1735764632844,-500.0,0.00019178,2]
[347399188,1735764632853,-500.0,0.00019178,2]
[347399190,1735764632862,-500.0,0.00019178,2]
[347399192,1735764632871,-640.47,0.00019178,2]
[347399194,1735764632881,-507.82,0.00019178,2]
[347399196,1735764632890,-500.0,0.00019178,2]
[347399198,1735764632899,-500.0,0.00019178,2]
[347399200,1735764632909,-500.0,0.00019178,2]
[347399202,1735764632918,-500.0,0.00019178,2]
[347399204,1735764632927,-500.0,0.00019178,2]
[347399206,1735764632936,-500.0,0.00019178,2]
[347399208,1735764632945,-500.0,0.00019178,2]
[347399210,1735764632955,-500.0,0.00019178,2]
[347399212,1735764632964,-500.0,0.00019178,2]
[347399214,1735764632975,-500.0,0.00019178,2]
[347399217,1735764632984,-500.0,0.00019178,2]
[347399219,1735764632994,-500.0,0.00019178,2]
[347399220,1735764633003,-500.0,0.00019178,2]
[347399222,1735764633012,-500.0,0.00019178,2]
[347399225,1735764633022,-500.0,0.00019178,2]
[347399227,1735764633031,-500.0,0.00019178,2]
[347399229,1735764633042,-500.0,0.00019178,2]
[347399231,1735764633052,-500.0,0.00019178,2]
[347399233,1735764633062,-800.66,0.00019178,2]
[347399235,1735764633071,-500.0,0.00019178,2]
[347399237,1735764633082,-500.0,0.00019178,2]
[347399239,1735764633092,-500.0,0.00019178,2]
[347399241,1735764633102,-672.05,0.00019178,2]
[347399243,1735764633112,-7481.11,0.00019178,2]
[347399245,1735764633121,-500.0,0.00019178,2]
[347399247,1735764633131,-1011.99,0.00019178,2]
[347399249,1735764633140,-1164.47,0.00019178,2]
[347399251,1735764633150,-500.0,0.00019178,2]
[347399252,1735764633160,-500.0,0.00019178,2]
[347399254,1735764633170,-500.0,0.00019178,2]
[347399256,1735764633180,-500.0,0.00019178,2]
[347399259,1735764633190,-500.0,0.00019178,2]
[347399261,1735764633200,-946.0,0.00019178,2]
[347399263,1735764633210,-500.0,0.00019178,2]
[347399265,1735764633219,-500.0,0.00019178,2]
[347399267,1735764633228,-702.66,0.00019178,2]
[347399269,1735764633238,-1242.24,0.00019178,2]
[347399271,1735764633247,-710.72,0.00019178,2]
[347399273,1735764633256,-687.32,0.00019178,2]
[347399275,1735764633265,-500.0,0.00019178,2]
[347399277,1735764633275,-500.0,0.00019178,2]
[347399279,1735764633287,-500.0,0.00019178,2]
[347399281,1735764633298,-500.0,0.00019178,2]
[347399283,1735764633308,-500.0,0.00019178,2]
[347399284,1735764633317,-500.0,0.00019178,2]
[347399287,1735764633328,-500.0,0.00019178,2]
[347399289,1735764633338,-500.0,0.00019178,2]
[347399290,1735764633347,-500.0,0.00019178,2]
[347399293,1735764633357,-604.64614272,0.00019178,2]
[347399295,1735764633367,-829.32,0.00019178,2]
[347399297,1735764633377,-500.0,0.00019178,2]
[347399298,1735764633386,-500.0,0.00019178,2]
[347399301,1735764633396,-500.0,0.00019178,2]
[347399303,1735764633406,-513.24879858,0.00019178,2]
[347399305,1735764633416,-500.0,0.00019178,2]
[347399306,1735764633425,-500.0,0.00019178,2]
[347399307,1735764633434,-500.0,0.00019178,2]
[347399308,1735764633443,-190.24022691,0.00019178,2]
[347399310,1735764633452,-1755.99,0.00019178,2]
[347399311,1735764633462,-293.78651882,0.00019178,2]
[347399313,1735764633471,-500.0,0.00019178,2]
[347399315,1735764633480,-517.00251571,0.00019178,2]
[347399318,1735764633490,-500.0,0.00019178,2]
[347399319,1735764633499,-1580.38,0.00019178,2]
[347399321,1735764633509,-500.0,0.00019178,2]
[347399323,1735764633518,-500.0,0.00019178,2]
[347399325,1735764633528,-500.0,0.00019178,2]
[347399327,1735764633537,-544.8231275,0.00019178,2]
[347399329,1735764633547,-500.0,0.00019178,2]
[347399331,1735764633556,-68.4957264,0.00019178,2]
[347399800,1735764638148,-159.577617,0.00013833,2]
[347399802,1735764638158,-155.55659496,0.00019077,2]
[347399805,1735764638171,-431.5042736,0.00019178,2]
[347399806,1735764638180,-500.0,0.00019178,2]
[347399808,1735764638189,-500.0,0.00019178,2]
[347399811,1735764638198,-500.0,0.00019178,2]
[347399812,1735764638207,-888.39,0.00019178,2]
[347399815,1735764638216,-500.0,0.00019178,2]
[347399817,1735764638226,-500.0,0.00019178,2]
[347399819,1735764638235,-501.40081499,0.00019178,2]
[347399821,1735764638244,-500.0,0.00019178,2]
[347399823,1735764638253,-589.36,0.00019178,2]
[347399825,1735764638262,-228.55130708,0.00019178,2]
[347399827,1735764638274,-272.58283183,0.00019178,2]
[347399829,1735764638286,-574.5,0.00019178,2]
[347399831,1735764638301,-152.91716817,0.00019178,2]
[347400130,1735765465503,500.0,0.00023287,120]
[347400135,1735765513922,729.547,0.00025,120]
[347400137,1735765564784,325.534051,0.00014222,14]
[347400138,1735765599125,-218.699838,0.00013973,2]
[347400139,1735765599146,-31.12073525,0.00016447,2]
[347400169,1735765832541,-218.699838,0.00013695,2]
[347400170,1735765832553,-4690.8493749,0.00017764,2]
[347400171,1735765832565,-306.4557036,0.00017933,2]
[347400172,1735765832576,-174.7992965,0.00018043,2]
[347400173,1735765832587,-153.0,0.00018356,2]
[347400174,1735765832599,-214.4412851,0.00018384,2]
[347400175,1735765832614,-153.0,0.00018384,2]
[347400176,1735765832626,-153.5878957,0.00018384,2]
[347400177,1735765832638,-42.34762645,0.00018441,2]
[347400860,1735765843537,-310.27036025,0.00018441,2]
[347400862,1735765843547,-352.6179867,0.000185,2]
[347400864,1735765843557,-589.1646275,0.000185,2]
[347400866,1735765843567,-300.0,0.0001854,2]
[347400868,1735765843577,-352.6179867,0.00018541,2]
[347400870,1735765843586,-352.6179867,0.00018541,2]
[347400872,1735765843595,-153.5878957,0.00018578,2]
[347400874,1735765843605,-188.59494963,0.00018578,2]
[347400955,1735765846567,-25.84633547,0.00018578,2]
[347400957,1735765846576,-153.0,0.00018678,2]
[347400959,1735765846586,-153.0,0.00018678,2]
[347400961,1735765846595,-214.4412851,0.00018678,2]
[347400963,1735765846604,-153.5878957,0.00018678,2]
[347400965,1735765846614,-155.5445787,0.00018678,2]
[347400968,1735765846623,-5164.75756255,0.00018858,2]
[347400970,1735765846632,-156.3950149,0.000189,2]
[347400971,1735765846641,-260.0329299,0.000189,2]
[347400974,1735765846651,-157.433088,0.000189,2]
[347400976,1735765846660,-182.8175691,0.000189,2]
[347400977,1735765846669,-153.5878957,0.000189,2]
[347400980,1735765846679,-153.0,0.000189,2]
[347400982,1735765846688,-214.4412851,0.000189,2]
[347400984,1735765846698,-153.5878957,0.000189,2]
[347400986,1735765846707,-153.0,0.000189,2]
[347400988,1735765846716,-179.46769842,0.00018978,2]
[347400989,1735765846726,-23728.52665349,0.00019,2]
[347400991,1735765846736,-394.0,0.00019022,2]
[347400993,1735765846746,-365.78995224,0.00019078,2]
[347400996,1735765846757,-449.16803142,0.00019078,2]
[347400997,1735765846766,-300.0,0.000191,8]
[347401000,1735765846776,-365.78995223,0.00019147,2]
[347401001,1735765846787,-500.35467161,0.00019173,2]
[347401003,1735765846796,-359.27331547,0.00019173,2]
[347401005,1735765846807,-500.54994157,0.00019173,2]
[347401007,1735765846816,-173.607,0.00019177,2]
[347401009,1735765846826,-500.0,0.00019177,2]
[347401011,1735765846835,-500.0,0.00019177,2]
[347401013,1735765846844,-205.46222499,0.00019177,2]
[347401015,1735765846853,-500.0,0.00019177,2]
[347401017,1735765846862,-500.0,0.00019177,2]
[347401019,1735765846872,-500.0,0.00019177,2]
[347401021,1735765846881,-500.0,0.00019177,2]
[347401023,1735765846891,-500.0,0.00019177,2]
[347401025,1735765846900,-500.0,0.00019177,2]
[347401027,1735765846909,-500.0,0.00019177,2]
[347401029,1735765846918,-500.0,0.00019177,2]
[347401031,1735765846928,-500.0,0.00019177,2]
[347401033,1735765846937,-500.0,0.00019177,2]
[347401035,1735765846947,-500.0,0.00019177,2]
[347401036,1735765846956,-500.0,0.00019177,2]
[347401038,1735765846965,-500.0,0.00019177,2]
[347401040,1735765846975,-500.0,0.00019177,2]
[347401042,1735765846985,-500.0,0.00019177,2]
[347401044,1735765846994,-500.0,0.00019177,2]
[347401046,1735765847004,-213.24366055,0.00019177,2]
[347401048,1735765847014,-255.09556676,0.00019177,2]
[347401050,1735765847023,-166.5,0.00019178,2]
[347401052,1735765847033,-2206.01635324,0.00019178,2]
[347401054,1735765847042,-39634.22396922,0.00019178,2]
[347401056,1735765847052,-212.75485736,0.00019178,2]
[347401058,1735765847062,-500.0,0.00019178,2]
[347401060,1735765847071,-500.0,0.00019178,2]
[347401062,1735765847081,-500.0,0.00019178,2]
[347401064,1735765847093,-500.0,0.00019178,2]
[347401066,1735765847102,-500.0,0.00019178,2]
[347401068,1735765847111,-451.34744704,0.00019178,2]
[347401070,1735765847121,-500.0,0.00019178,2]
[347401072,1735765847130,-500.0,0.00019178,2]
[347401074,1735765847139,-500.0,0.00019178,2]
[347401076,1735765847148,-500.0,0.00019178,2]
[347401078,1735765847157,-500.0,0.00019178,2]
[347401080,1735765847167,-500.0,0.00019178,2]
[347401082,1735765847176,-500.0,0.00019178,2]
[347401084,1735765847185,-500.0,0.00019178,2]
[347401086,1735765847194,-500.0,0.00019178,2]
[347401088,1735765847203,-500.0,0.00019178,2]
[347401090,1735765847213,-500.0,0.00019178,2]
[347401092,1735765847223,-500.0,0.00019178,2]
[347401094,1735765847232,-500.45980002,0.00019178,2]
[347401096,1735765847241,-500.0,0.00019178,2]
[347401098,1735765847250,-500.0,0.00019178,2]
[347401100,1735765847260,-500.0,0.00019178,2]
[347401101,1735765847269,-411.07347572,0.00019178,2]
[347401104,1735765847280,-500.0,0.00019178,2]
[347401106,1735765847289,-500.0,0.00019178,2]
[347401108,1735765847298,-500.0,0.00019178,2]
[347401109,1735765847307,-500.0,0.00019178,2]
[347401111,1735765847317,-500.0,0.00019178,2]
[347401113,1735765847327,-500.0,0.00019178,2]
[347401116,1735765847336,-500.0,0.00019178,2]
[347401118,1735765847346,-501.16110085,0.00019178,2]
[347401119,1735765847355,-500.0,0.00019178,2]